bitfinex-derivatives/quotes_BTCF0:USTF0_20241005
["timestamp","ask_amount","ask_price","bid_price","bid_amount"]
[1728151252884,0.0024,62063.0,62062.0,0.48204891]
[1728151254696,0.0004,62064.0,62063.0,0.056391]
[1728151254895,0.0004,62064.0,62063.0,0.056791]
[1728151256090,0.0014,62064.0,62063.0,0.059791]
[1728151256800,0.0024,62064.0,62063.0,0.062791]
[1728151258488,0.09130019,62064.0,62063.0,0.062791]
[1728151265705,0.0042,62069.0,62068.0,0.056386]
[1728151266005,0.0004,62069.0,62068.0,0.056386]
[1728151266200,0.0004,62069.0,62068.0,0.176786]
[1728151266501,0.0004,62069.0,62068.0,0.3800107]
[1728151267003,0.0004,62069.0,62068.0,0.3810107]
[1728151267200,0.0004,62069.0,62068.0,0.38401225]
[1728151268202,0.0004,62069.0,62068.0,0.30354905]
[1728151268596,0.0004,62069.0,62068.0,0.38386483]
[1728151270500,0.0004,62069.0,62068.0,0.26110178]
[1728151270900,0.0004,62069.0,62068.0,0.38386292]
[1728151271304,0.0004,62069.0,62068.0,0.26110178]
[1728151272097,0.0004,62069.0,62068.0,0.38386323]
[1728151272504,0.0004,62069.0,62068.0,0.26110178]
[1728151273604,0.08929528,62069.0,62068.0,0.180786]
[1728151274603,0.08929528,62069.0,62068.0,0.541586]
[1728151274998,0.08929528,62069.0,62068.0,0.180786]
[1728151275307,0.08929528,62069.0,62068.0,0.541586]
[1728151275510,0.08929528,62069.0,62068.0,0.421586]
[1728151275715,0.08929528,62069.0,62068.0,0.541586]
[1728151280911,0.08929815,62069.0,62068.0,0.541586]
[1728151281511,0.0004,62069.0,62068.0,0.541586]
[1728151283711,0.0004,62069.0,62068.0,0.180786]
[1728151288609,0.03985089,62069.0,62068.0,0.180786]
[1728151289419,0.08929991,62069.0,62068.0,0.180786]
[1728151290414,0.0004,62069.0,62068.0,0.180786]
[1728151290718,0.26568441,62069.0,62068.0,0.060786]
[1728151291021,0.14568441,62069.0,62068.0,0.060786]
[1728151291226,0.14568519,62069.0,62068.0,0.060786]
[1728151291619,0.17878519,62069.0,62068.0,0.060786]
[1728151292121,0.29878519,62069.0,62068.0,0.0044]
[1728151292318,0.24933657,62069.0,62068.0,0.0044]
[1728151292624,0.693206,62069.0,62068.0,0.0044]
[1728151293815,1.293206,62069.0,62065.0,0.0113]
[1728151294015,0.176788,62066.0,62065.0,0.0113]
[1728151294214,0.05639,62064.0,62063.0,0.0004]
[1728151294419,0.05679,62064.0,62063.0,0.0004]
[1728151296618,0.05879,62064.0,62063.0,0.0054]
[1728151297425,0.05879,62064.0,62063.0,0.12609509]
[1728151297726,0.05879,62064.0,62063.0,0.06970409]
[1728151302424,0.05879,62064.0,62063.0,0.0054]
[1728151305741,0.05879,62064.0,62063.0,0.061791]
[1728151311549,0.09824773,62064.0,62063.0,0.061791]
[1728151311848,0.14770532,62064.0,62063.0,0.061791]
[1728151314444,0.09131532,62064.0,62063.0,0.061791]
[1728151315738,0.09131532,62064.0,62063.0,0.181791]
[1728151316140,0.09131532,62064.0,62063.0,0.213391]
[1728151318551,0.0024,62064.0,62063.0,0.24311318]
[1728151325350,0.0024,62064.0,62063.0,0.72647318]
[1728151325655,0.0004,62066.0,62065.0,0.056389]
[1728151326048,0.0004,62066.0,62065.0,0.056789]
[1728151326653,0.08929986,62066.0,62065.0,0.056789]
[1728151326961,0.08929986,62066.0,62065.0,0.059789]
[1728151327142,0.17704135,62066.0,62065.0,1.143149]
[1728151327348,0.03945087,62066.0,62065.0,1.143149]
[1728151328149,0.04045087,62066.0,62065.0,1.146149]
[1728151329657,0.16185753,62066.0,62065.0,1.146149]
[1728151329843,0.2013084,62066.0,62065.0,1.506949]
[1728151330448,0.18519446,62066.0,62065.0,1.506949]
[1728151331045,0.04045087,62066.0,62065.0,1.506949]
[1728151331446,0.14572427,62066.0,62065.0,1.506949]
[1728151331656,0.001,62066.0,62065.0,0.906949]
[1728151331855,0.04045087,62066.0,62065.0,0.906949]
[1728151332255,0.08989751,62066.0,62065.0,0.906949]
[1728151333665,0.001,62066.0,62065.0,0.906949]
[1728151334963,0.001,62066.0,62065.0,0.423589]
[1728151335159,0.001,62066.0,62065.0,1.506949]
[1728151336464,0.001,62066.0,62065.0,1.5550706]
[1728151336664,0.001,62066.0,62065.0,1.506949]
[1728151339058,0.0075,62075.0,62074.0,0.056381]
[1728151339261,0.0328,62087.0,62086.0,0.05637]
[1728151339560,0.0328,62087.0,62086.0,0.17637]
[1728151339865,0.0328,62087.0,62086.0,0.17677]
[1728151340165,0.086567,62090.0,62089.0,0.056367]
[1728151340166,0.0302,62090.0,62089.0,0.056367]
[1728151340361,0.0302,62090.0,62089.0,0.176767]
[1728151341768,0.0442,62090.0,62089.0,0.176767]
[1728151342067,0.0442,62090.0,62089.0,0.2059622]
[1728151343063,0.0582,62090.0,62089.0,0.2059622]
[1728151345268,0.0582,62090.0,62089.0,0.5667622]
[1728151346163,0.0582,62090.0,62089.0,0.2059622]
[1728151346364,0.0582,62090.0,62089.0,0.5667622]
[1728151348770,0.14706944,62090.0,62089.0,0.5667622]
[1728151353480,0.14706944,62090.0,62089.0,0.417567]
[1728151354667,0.0582,62090.0,62089.0,0.417567]
[1728151354865,0.14707237,62090.0,62089.0,0.417567]
[1728151355874,0.0582,62090.0,62089.0,0.417567]
[1728151356375,0.114566,62090.0,62089.0,0.0004]
[1728151356575,0.234566,62090.0,62089.0,0.0004]
[1728151357766,0.114566,62090.0,62089.0,0.0004]
[1728151359673,0.094566,62090.0,62089.0,0.0004]
[1728151361183,0.094566,62090.0,62089.0,0.056767]
[1728151363871,0.18344139,62090.0,62089.0,0.056767]
[1728151367281,0.12707539,62090.0,62089.0,0.056767]
[1728151369482,0.0382,62090.0,62089.0,0.056767]
[1728151369991,0.12707539,62090.0,62089.0,0.056767]
[1728151370786,0.0382,62090.0,62089.0,0.056767]
[1728151374989,0.0382,62090.0,62089.0,0.10495403]
[1728151376587,0.0382,62090.0,62089.0,0.056767]
[1728151378992,0.12707541,62090.0,62089.0,0.056767]
[1728151379186,0.18484028,62090.0,62089.0,0.056767]
[1728151379382,0.12707541,62090.0,62089.0,0.056767]
[1728151379593,0.18484028,62090.0,62089.0,0.056767]
[1728151380499,0.21341397,62090.0,62089.0,0.056767]
[1728151381081,0.21341399,62090.0,62089.0,0.056767]
[1728151385796,0.15564912,62090.0,62089.0,0.056767]
[1728151386092,0.028,62090.0,62089.0,0.056767]
[1728151387684,0.028,62090.0,62089.0,0.176767]
[1728151388896,0.028,62090.0,62089.0,0.2409132]
[1728151389489,0.028,62090.0,62089.0,0.1209132]
[1728151389689,0.028,62090.0,62089.0,0.056767]
[1728151390488,0.028,62090.0,62089.0,0.0004]
[1728151390694,0.084366,62090.0,62089.0,0.0004]
[1728151392304,0.084366,62090.0,62089.0,0.056767]
[1728151392701,0.084366,62090.0,62089.0,0.0004]
[1728151393005,0.084366,62090.0,62089.0,0.056767]
[1728151393200,0.084366,62090.0,62089.0,0.10498409]
[1728151393393,0.084366,62090.0,62089.0,0.056767]
[1728151400200,0.204366,62090.0,62089.0,0.056767]
[1728151401100,0.29324654,62090.0,62089.0,0.056767]
[1728151404108,0.35101473,62090.0,62089.0,0.056767]
[1728151404406,0.29324654,62090.0,62089.0,0.056767]
[1728151404706,0.35101473,62090.0,62089.0,0.056767]
[1728151405304,0.35101266,62090.0,62089.0,0.056767]
[1728151408902,0.204366,62090.0,62089.0,0.056767]
[1728151411910,0.565166,62090.0,62089.0,0.056767]
[1728151412104,0.565166,62090.0,62089.0,0.04860753]
[1728151412310,0.565166,62090.0,62089.0,0.0004]
[1728151415524,0.565166,62090.0,62089.0,0.04862638]
[1728151415717,0.565166,62090.0,62089.0,0.0004]
[1728151416009,0.65405037,62090.0,62089.0,0.0004]
[1728151419908,0.565166,62090.0,62089.0,0.0004]
[1728151420211,0.65405044,62090.0,62089.0,0.0004]
[1728151421115,0.29325044,62090.0,62089.0,0.0004]
[1728151421313,0.65405044,62090.0,62089.0,0.0004]
[1728151424019,0.565166,62090.0,62089.0,0.0004]
[1728151424721,0.204366,62090.0,62089.0,0.0004]
[1728151424913,0.565166,62090.0,62089.0,0.0004]
[1728151428210,0.204366,62090.0,62089.0,0.0004]
[1728151428411,0.565166,62090.0,62089.0,0.0004]
[1728151439041,0.71182279,62090.0,62089.0,0.0004]
[1728151439239,0.92132783,62090.0,62089.0,0.0004]
[1728151441232,0.92132783,62090.0,62086.0,0.0117]
[1728151441433,0.176769,62087.0,62086.0,0.0117]
[1728151441634,0.62995982,62087.0,62086.0,0.0004]
[1728151441838,0.68773119,62087.0,62086.0,0.0004]
[1728151442443,0.68773119,62087.0,62086.0,0.0014]
[1728151442645,0.056373,62083.0,62079.0,0.0038]
[1728151442846,0.056373,62083.0,62076.0,0.00241638]
[1728151442847,0.056378,62077.0,62076.0,0.00621638]
[1728151443038,0.26567925,62077.0,62076.0,0.00241638]
[1728151444345,0.26867925,62077.0,62076.0,0.00241638]
[1728151444647,0.26967925,62077.0,62076.0,0.00241638]
[1728151446154,0.180778,62077.0,62076.0,0.00241638]
[1728151446746,0.060778,62077.0,62076.0,0.17879538]
[1728151447147,0.060778,62077.0,62076.0,0.05879538]
[1728151448056,0.060778,62077.0,62076.0,0.056379]
[1728151451943,0.060778,62077.0,62074.0,0.0004]
[1728151451944,0.0044,62077.0,62074.0,0.0004]
[1728151452155,0.05678,62075.0,62074.0,0.056781]
[1728151454052,0.50648103,62075.0,62074.0,0.056781]
[1728151454262,0.56426255,62075.0,62074.0,0.056781]
[1728151454960,0.56426255,62075.0,62074.0,0.057781]
[1728151455753,0.56526255,62075.0,62074.0,0.057781]
[1728151461158,0.3622,62075.0,62074.0,0.057781]
[1728151461667,0.41858,62075.0,62074.0,0.057781]
[1728151464665,0.056381,62074.0,62070.0,0.0038]
[1728151464861,0.176784,62071.0,62070.0,0.0038]
[1728151465062,0.056386,62069.0,62067.0,0.04817424]
[1728151465261,0.176786,62068.0,62067.0,0.04817424]
[1728151466467,0.176786,62068.0,62065.0,0.0004]
[1728151466468,0.176786,62068.0,62066.0,0.04816346]
[1728151466655,0.056387,62067.0,62066.0,0.04816346]
[1728151466855,0.177786,62068.0,62065.0,0.04856346]
[1728151467161,0.177786,62068.0,62065.0,0.0004]
[1728151467162,0.056788,62066.0,62065.0,0.0004]
[1728151468065,0.089288,62066.0,62065.0,0.0004]
[1728151468256,0.089288,62066.0,62065.0,0.0084]
[1728151468257,0.090288,62066.0,62065.0,0.0084]
[1728151468453,0.090288,62066.0,62065.0,0.05655628]
[1728151469064,0.17921031,62066.0,62065.0,0.0084]
[1728151469363,0.25212561,62066.0,62065.0,0.0124]
[1728151469566,0.34104792,62066.0,62065.0,0.0124]
[1728151470362,0.18021031,62066.0,62065.0,0.0124]
[1728151470664,0.34101082,62066.0,62065.0,0.0124]
[1728151471164,0.18021031,62066.0,62065.0,0.0124]
[1728151472070,0.23800478,62066.0,62065.0,0.0124]
[1728151472261,0.13074859,62066.0,62065.0,0.0124]
[1728151472563,0.18020976,62066.0,62065.0,0.0124]
[1728151474063,0.35706704,62066.0,62065.0,0.0124]
[1728151474961,0.26814528,62066.0,62065.0,0.0124]
[1728151475157,0.18020791,62066.0,62065.0,0.0124]
[1728151476168,0.091288,62066.0,62065.0,0.0124]
[1728151483067,0.452088,62066.0,62065.0,0.0124]
[1728151489966,0.812888,62066.0,62065.0,0.0124]
[1728151491173,0.90181648,62066.0,62065.0,0.0124]
[1728151491365,0.95961584,62066.0,62065.0,0.0124]
[1728151493379,0.59881584,62066.0,62065.0,0.0124]
[1728151497172,0.23801584,62066.0,62065.0,0.0124]
[1728151497379,0.90181648,62066.0,62065.0,0.0124]
[1728151497575,0.95961584,62066.0,62065.0,0.0124]
[1728151499183,0.95961584,62066.0,62065.0,0.06055628]
[1728151499184,0.812888,62066.0,62065.0,0.06055628]
[1728151499581,0.812888,62066.0,62065.0,0.0124]
[1728151500281,0.812888,62066.0,62065.0,0.06055628]
[1728151501287,0.812888,62066.0,62063.0,1e-08]
[1728151501288,0.7565,62066.0,62063.0,1e-08]
[1728151501489,0.17679,62064.0,62063.0,1e-08]
[1728151503688,0.17679,62064.0,62063.0,0.00100001]
[1728151503893,0.17679,62064.0,62053.0,0.08071578]
[1728151503894,0.0014,62064.0,62053.0,0.08071578]
[1728151504089,0.176799,62054.0,62053.0,0.0004]
[1728151505580,0.177799,62054.0,62053.0,0.0004]
[1728151506192,0.21033767,62054.0,62050.0,0.0004]
[1728151506400,0.176802,62051.0,62030.0,0.32574]
[1728151506693,0.176802,62051.0,62038.0,0.0614]
[1728151506694,0.176808,62044.0,62038.0,0.0614]
[1728151506885,0.26574567,62044.0,62038.0,0.0614]
[1728151507295,0.42677592,62044.0,62038.0,0.0614]
[1728151507485,0.26574567,62044.0,62038.0,0.0614]
[1728151507690,0.056413,62040.0,62038.0,0.0614]
[1728151507994,0.15986765,62039.0,62038.0,0.0614]
[1728151508195,0.20934715,62039.0,62038.0,0.0614]
[1728151508493,0.15986765,62039.0,62038.0,0.0614]
[1728151508696,0.20934739,62039.0,62038.0,0.0614]
[1728151508889,0.57014739,62039.0,62038.0,0.0614]
[1728151509192,0.056414,62038.0,62031.0,0.0323]
[1728151509391,0.12,62032.0,62031.0,0.0323]
[1728151509599,0.15986765,62032.0,62031.0,0.0323]
[1728151510696,0.16086765,62032.0,62031.0,0.0323]
[1728151511291,0.16186765,62032.0,62031.0,0.0323]
[1728151512294,0.1224,62032.0,62031.0,0.0323]
[1728151513088,0.16187778,62032.0,62031.0,0.0323]
[1728151513295,0.1224,62032.0,62031.0,0.0323]
[1728151519191,0.178819,62032.0,62031.0,0.0323]
[1728151523192,0.1223535,62032.0,62031.0,0.0323]
[1728151524702,0.1223535,62032.0,62027.0,0.14971578]
[1728151524703,0.056423,62028.0,62027.0,0.14971578]
[1728151525001,0.176823,62028.0,62027.0,0.0656]
[1728151525404,0.056426,62025.0,62024.0,0.08031578]
[1728151525601,0.056426,62025.0,62022.0,0.08273459]
[1728151525602,0.056426,62024.0,62022.0,0.08273459]
[1728151525806,0.1204,62025.0,62022.0,0.08273459]
[1728151525807,0.056427,62023.0,62022.0,0.00241881]
[1728151526000,0.056827,62023.0,62022.0,0.00241881]
[1728151526695,0.0004,62023.0,62021.0,0.08031578]
[1728151526894,0.0004,62023.0,62020.0,0.08411578]
[1728151526895,0.056429,62021.0,62020.0,0.08411578]
[1728151527096,0.056829,62021.0,62019.0,0.08031578]
[1728151527291,0.056829,62021.0,62016.0,0.45819584]
[1728151527292,0.056431,62019.0,62018.0,0.08031578]
[1728151527491,0.056831,62019.0,62018.0,0.12287098]
[1728151527692,0.056432,62018.0,62017.0,0.08026901]
[1728151527901,0.056432,62018.0,62016.0,0.08026901]
[1728151527902,0.176832,62018.0,62016.0,0.08026901]
[1728151528097,0.0004,62017.0,62016.0,0.08026901]
[1728151528305,0.0004,62017.0,62016.0,0.20314916]
[1728151528497,0.176832,62018.0,62016.0,0.12288015]
[1728151528699,0.176832,62018.0,62017.0,0.20355555]
[1728151528894,0.177832,62018.0,62017.0,0.12428015]
[1728151529096,0.177832,62018.0,62017.0,0.08167521]
[1728151529301,0.538632,62018.0,62017.0,0.0014]
[1728151529497,0.538632,62018.0,62014.0,0.0038]
[1728151529498,0.056435,62015.0,62014.0,0.0038]
[1728151529700,0.056435,62015.0,62006.0,0.056443]
[1728151529701,0.056438,62011.0,62010.0,0.0038]
[1728151529907,0.056438,62011.0,62006.0,0.056443]
[1728151529908,0.05644,62010.0,62007.0,0.00621914]
[1728151530100,0.1204,62008.0,62007.0,0.00621914]
[1728151530303,0.1204,62008.0,62007.0,0.00241914]
[1728151530497,0.176841,62008.0,62007.0,0.00241914]
[1728151531006,0.176841,62008.0,62007.0,0.00341914]
[1728151531812,0.177841,62008.0,62007.0,0.00341914]
[1728151532104,0.0014,62008.0,62007.0,0.177442]
[1728151532310,0.0014,62008.0,62007.0,0.30033539]
[1728151532311,0.0024,62008.0,62007.0,0.30033539]
[1728151532700,0.0024,62008.0,62007.0,0.18033539]
[1728151534405,0.1224,62008.0,62007.0,0.18033539]
[1728151534912,0.178841,62008.0,62007.0,0.001]
[1728151539916,0.20749174,62008.0,62007.0,0.001]
[1728151544603,0.178841,62008.0,62007.0,0.001]
[1728151548217,0.178841,62008.0,62007.0,0.12390249]
[1728151548420,0.13042243,62008.0,62007.0,0.12390249]
[1728151549511,0.13042243,62008.0,62007.0,0.18034449]
[1728151551719,0.13042243,62008.0,62007.0,0.001]
[1728151552225,0.13042243,62008.0,62007.0,0.12390691]
[1728151553316,0.07393206,62008.0,62007.0,0.12390691]
[1728151556423,0.07393206,62008.0,62007.0,0.22046275]
[1728151556624,0.07393206,62008.0,62007.0,0.12390691]
[1728151557029,0.07393206,62008.0,62007.0,0.22046275]
[1728151557232,0.07393206,62008.0,62007.0,0.12390691]
[1728151557626,0.419241,62008.0,62007.0,0.12390691]
[1728151557924,0.539241,62008.0,62007.0,0.12390691]
[1728151558332,0.539241,62008.0,62007.0,0.001]
[1728151558732,0.539241,62008.0,62003.0,0.0038]
[1728151558919,0.539241,62008.0,61990.0,0.48950033]
[1728151558920,0.1204,62004.0,61986.0,0.0038]
[1728151559126,0.056456,61991.0,61990.0,0.00084]
[1728151559329,0.0075,61996.0,61990.0,0.12376692]
[1728151559625,0.056452,61996.0,61995.0,0.08098261]
[1728151559819,0.056452,61996.0,61995.0,0.19640953]
[1728151560232,0.176452,61996.0,61995.0,0.19640953]
[1728151560833,0.177452,61996.0,61995.0,0.19740953]
[1728151561236,0.177452,61996.0,61995.0,0.07448261]
[1728151561428,0.177452,61996.0,61995.0,0.0014]
[1728151561626,0.178452,61996.0,61995.0,0.0014]
[1728151565236,0.178452,61996.0,61995.0,0.06579452]
[1728151566542,0.178452,61996.0,61995.0,0.0014]
[1728151567443,0.539252,61996.0,61995.0,0.0014]
[1728151577341,0.419252,61996.0,61995.0,0.0014]
[1728151580143,0.419252,61996.0,61995.0,0.12432714]
[1728151584841,0.058452,61996.0,61995.0,0.12432714]
[1728151585152,0.419252,61996.0,61995.0,0.12432714]
[1728151586350,0.419252,61996.0,61995.0,0.22089859]
[1728151586848,0.419252,61996.0,61995.0,0.12432714]
[1728151587054,0.058452,61996.0,61995.0,0.12432714]
[1728151587349,0.419252,61996.0,61995.0,0.12432714]
[1728151587955,0.3721,62001.0,61995.0,1.65045633]
[1728151588260,0.3721,62001.0,62000.0,0.056848]
[1728151588443,0.3721,62001.0,62000.0,0.32889584]
[1728151588444,0.3608,62001.0,62000.0,0.32889584]
[1728151589052,0.3618,62001.0,62000.0,0.32889584]
[1728151589555,0.3628,62001.0,62000.0,0.32889584]
[1728151593960,0.002,62001.0,62000.0,0.32889584]
[1728151595349,0.002,62001.0,62000.0,0.32850937]
[1728151602368,0.002,62001.0,62000.0,0.81238937]
[1728151602968,0.002,62001.0,62000.0,0.32850937]
[1728151603466,0.002,62001.0,62000.0,0.81238937]
[1728151604274,0.32284935,62004.0,62000.0,0.27206137]
[1728151604467,0.32284935,62004.0,62003.0,0.176446]
[1728151604669,0.32284935,62004.0,62003.0,0.29935642]
[1728151604970,0.32284935,62004.0,62003.0,0.33205642]
[1728151605670,0.32384935,62004.0,62003.0,0.33305642]
[1728151605863,0.32384935,62004.0,62003.0,0.33405642]
[1728151605864,0.32484935,62004.0,62003.0,0.33405642]
[1728151607268,0.32484935,62004.0,62003.0,0.43069516]
[1728151607965,0.002,62004.0,62003.0,0.43069516]
[1728151609068,0.002,62004.0,62003.0,0.31069516]
[1728151609472,0.002,62004.0,62003.0,0.21405642]
[1728151612463,0.002,62004.0,62003.0,0.18175642]
[1728151613264,0.002,62004.0,62003.0,0.27839516]
[1728151614571,0.002,62004.0,62003.0,0.18175642]
[1728151616164,0.002,62004.0,62003.0,0.33018706]
[1728151616361,0.002,62004.0,62003.0,0.33017573]
[1728151619671,0.002,62004.0,62003.0,0.33029109]
[1728151619872,0.002,62004.0,62003.0,0.18175079]
[1728151620270,0.002,62004.0,62003.0,0.33029671]
[1728151620477,0.002,62004.0,62003.0,0.18175079]
[1728151620671,0.002,62004.0,62003.0,0.18175383]
[1728151621072,0.002,62004.0,62003.0,0.33030415]
[1728151629576,0.002,62004.0,62003.0,0.33031544]
[1728151632577,0.058445,62004.0,62003.0,0.27386944]
[1728151632774,0.058445,62004.0,62003.0,0.12530785]
[1728151633080,0.12053486,62004.0,62003.0,0.12530785]
[1728151634485,0.12053486,62004.0,62003.0,0.20598519]
[1728151634679,0.12053486,62004.0,62003.0,0.12531563]
[1728151634875,0.12053486,62004.0,62003.0,0.2059852]
[1728151635383,0.48133486,62004.0,62003.0,0.2059852]
[1728151636894,0.48133486,62004.0,62003.0,0.0024]
[1728151641690,0.48133486,62004.0,62003.0,0.12531646]
[1728151644482,0.48133486,62004.0,62003.0,0.20594762]
[1728151645981,0.48133486,62004.0,62003.0,0.0024]
[1728151651183,0.12053486,62004.0,62003.0,0.0024]
[1728151651384,0.48133486,62004.0,62003.0,0.0024]
[1728151653691,0.12053486,62004.0,62003.0,0.0024]
[1728151653888,0.48133486,62004.0,62003.0,0.0024]
[1728151659695,0.12053486,62004.0,62003.0,0.0024]
[1728151660082,0.48133486,62004.0,62003.0,0.0024]
[1728151660289,0.48133486,62004.0,62000.0,0.08062368]
[1728151660494,0.056452,61996.0,61995.0,0.0004]
[1728151660788,0.176852,61996.0,61995.0,0.0004]
[1728151661194,0.056852,61996.0,61995.0,0.0004]
[1728151661500,0.176852,61996.0,61995.0,0.0004]
[1728151661899,0.176852,61996.0,61995.0,0.0014]
[1728151662387,0.177852,61996.0,61995.0,0.0014]
[1728151662788,0.20752282,61996.0,61995.0,0.0014]
[1728151662988,0.20752282,61996.0,61985.0,0.0075]
[1728151662989,0.056461,61986.0,61985.0,0.0075]
[1728151663189,0.056461,61986.0,61985.0,0.12294298]
[1728151663190,0.0004,61986.0,61985.0,0.12294298]
[1728151663895,0.0004,61986.0,61980.0,0.0637]
[1728151663896,0.056466,61981.0,61980.0,0.0637]
[1728151664096,0.176866,61981.0,61980.0,0.18665257]
[1728151665594,0.178866,61981.0,61980.0,0.18665257]
[1728151665792,0.178866,61981.0,61980.0,0.12295257]
[1728151665992,0.178866,61981.0,61966.0,0.0966]
[1728151665993,0.4832,61981.0,61966.0,0.0966]
[1728151666193,0.4832,61981.0,61971.0,0.12296495]
[1728151666194,0.12,61973.0,61971.0,0.12296495]
[1728151666393,0.056472,61974.0,61970.0,0.00242084]
[1728151666394,0.056472,61974.0,61972.0,0.12296495]
[1728151666601,0.176473,61973.0,61970.0,0.00242084]
[1728151666800,0.176473,61973.0,61971.0,0.12296748]
[1728151666987,0.176473,61973.0,61972.0,0.12296748]
[1728151667503,0.176473,61973.0,61970.0,0.00342084]
[1728151667795,0.176473,61973.0,61971.0,0.12296885]
[1728151668000,0.177473,61973.0,61971.0,0.001]
[1728151668595,0.3608,61972.0,61971.0,0.001]
[1728151668796,0.417274,61972.0,61971.0,0.001]
[1728151669200,0.3608,61972.0,61971.0,0.001]
[1728151669904,0.4808,61972.0,61971.0,0.001]
[1728151670097,0.4808,61972.0,61970.0,0.04825624]
[1728151670302,0.4808,61972.0,61971.0,0.04825624]
[1728151670490,0.4808,61972.0,61970.0,0.04925624]
[1728151670989,0.0004,61971.0,61970.0,0.04825624]
[1728151671402,0.0004,61971.0,61968.0,0.04825624]
[1728151671600,0.0004,61971.0,61962.0,0.056483]
[1728151671601,0.12,61969.0,61967.0,0.04825624]
[1728151671902,0.0004,61968.0,61967.0,0.12]
[1728151673099,0.0004,61968.0,61967.0,0.176478]
[1728151673501,0.0004,61968.0,61967.0,0.22464779]
[1728151673804,0.0004,61968.0,61967.0,0.176478]
[1728151674504,0.0014,61968.0,61967.0,0.22464018]
[1728151674702,0.0014,61968.0,61967.0,0.176478]
[1728151675504,0.0024,61968.0,61967.0,0.2256334]
[1728151676609,0.0024,61968.0,61967.0,0.177478]
[1728151678403,0.0024,61968.0,61967.0,0.057478]
[1728151678600,0.1224,61968.0,61967.0,0.057478]
[1728151678800,0.0024,61968.0,61967.0,0.057478]
[1728151679700,0.0024,61968.0,61967.0,0.177478]
[1728151681499,0.0024,61968.0,61967.0,0.661598]
[1728151681695,0.1224,61968.0,61967.0,0.057478]
[1728151681911,0.0024,61968.0,61967.0,0.057478]
[1728151687699,0.0014,61968.0,61967.0,0.056478]
[1728151687902,0.0024,61968.0,61967.0,0.057478]
[1728151688309,0.178877,61968.0,61967.0,0.001]
[1728151689803,0.058877,61968.0,61967.0,0.001]
[1728151690306,0.0004,61968.0,61966.0,0.056479]
[1728151690512,0.0004,61968.0,61967.0,0.057478]
[1728151691010,0.0004,61968.0,61967.0,0.177478]
[1728151691516,0.0014,61968.0,61967.0,0.177478]
[1728151692112,0.0004,61968.0,61967.0,0.177478]
[1728151692411,0.176877,61968.0,61967.0,0.001]
[1728151692813,0.176877,61968.0,61966.0,0.001]
[1728151692814,0.056479,61967.0,61966.0,0.001]
[1728151693119,0.056879,61967.0,61966.0,0.001]
[1728151693622,0.056879,61967.0,61965.0,0.08046005]
[1728151693819,0.07109323,61966.0,61963.0,0.12]
[1728151694010,0.07069323,61965.0,61963.0,0.12]
[1728151694316,0.12757423,61964.0,61963.0,0.12]
[1728151695012,0.12757423,61964.0,61960.0,0.3608]
[1728151695211,0.0004,61961.0,61960.0,0.3608]
[1728151695520,0.07109319,61961.0,61960.0,0.3608]
[1728151695715,0.07109319,61961.0,61960.0,0.056485]
[1728151696020,0.07109319,61961.0,61959.0,0.12]
[1728151696209,0.08765846,61960.0,61959.0,0.12]
[1728151696410,0.08805846,61960.0,61959.0,0.12]
[1728151697816,0.12857898,61960.0,61959.0,0.121]
[1728151698011,0.12957898,61960.0,61959.0,0.177486]
[1728151701915,0.058885,61960.0,61959.0,0.44817332]
[1728151703316,0.058885,61960.0,61959.0,0.30047125]
[1728151706226,0.058885,61960.0,61959.0,0.44819184]
[1728151707317,0.0004,61961.0,61959.0,0.44819184]
[1728151707623,0.0004,61961.0,61960.0,0.32759084]
[1728151708223,0.14481559,61963.0,61962.0,0.056483]
[1728151708424,0.14481559,61963.0,61962.0,0.17986825]
[1728151708924,0.14481559,61963.0,61962.0,0.056883]
[1728151708925,0.17598951,61963.0,61962.0,0.056883]
[1728151710422,0.17698951,61963.0,61962.0,0.057883]
[1728151710725,0.17698951,61963.0,61962.0,0.059883]
[1728151710726,0.17798951,61963.0,61962.0,0.059883]
[1728151711511,0.03317392,61963.0,61962.0,0.059883]
[1728151716025,0.08965592,61963.0,61962.0,0.0034]
[1728151716921,0.058482,61963.0,61962.0,0.12638532]
[1728151717421,0.058482,61963.0,61962.0,0.27394866]
[1728151717618,0.058482,61963.0,61962.0,0.27401603]
[1728151718024,0.058482,61963.0,61962.0,0.45045174]
[1728151718645,0.058482,61963.0,61962.0,0.33045174]
[1728151719419,0.058482,61963.0,61962.0,0.33042053]
[1728151723921,0.058482,61963.0,61962.0,0.059883]
[1728151723922,0.08965596,61963.0,61962.0,0.059883]
[1728151724131,0.12917637,61963.0,61962.0,0.179883]
[1728151725230,0.12917637,61963.0,61962.0,0.059883]
[1728151731133,0.058482,61963.0,61962.0,0.3303724]
[1728151732135,0.058482,61963.0,61962.0,0.2738894]
[1728151733731,0.058482,61963.0,61962.0,0.2338894]
[1728151733935,0.058482,61963.0,61962.0,0.12298486]
[1728151738734,0.002,61963.0,61962.0,0.12298595]
[1728151738930,0.002,61963.0,61960.0,0.0004]
[1728151738931,0.07269496,61963.0,61960.0,0.0004]
[1728151739244,0.056884,61961.0,61960.0,0.0004]
[1728151739443,0.12757896,61961.0,61960.0,0.0004]
[1728151741143,0.12857896,61961.0,61960.0,0.0004]
[1728151741631,0.07209496,61961.0,61960.0,0.056885]
[1728151742134,0.07309496,61961.0,61960.0,0.056885]
[1728151742441,0.07309496,61961.0,61960.0,0.176885]
[1728151743134,0.03357422,61961.0,61960.0,0.176885]
[1728151746046,0.0024,61961.0,61960.0,0.44690608]
[1728151746848,0.0004,61966.0,61965.0,0.05648]
[1728151747047,0.0004,61966.0,61965.0,0.44680184]
[1728151748241,0.0014,61966.0,61965.0,0.44680184]
[1728151748443,0.0024,61966.0,61965.0,0.44680184]
[1728151749841,0.0024,61966.0,61965.0,0.73013442]
[1728151750356,0.0024,61966.0,61965.0,0.55980384]
[1728151750551,0.0024,61966.0,61965.0,0.73027463]